lending/lending_fUSD_20250808
["ID","MTS","AMOUNT","RATE_DAILY","PERIOD"]
[377943248,1754622636416,-844.35,0.0001889,2]
[377943249,1754622636426,-1890.35,0.0001889,2]
[377943250,1754622636435,-625.53,0.0001889,2]
[377943251,1754622636446,-664.37,0.0001889,2]
[377943252,1754622636457,-431.82,0.0001889,2]
[377943253,1754622636467,-410.22,0.0001889,2]
[377943254,1754622636476,-587.53,0.0001889,2]
[377943255,1754622636485,-400.0,0.0001889,2]
[377943256,1754622636494,-400.0,0.0001889,2]
[377943257,1754622636504,-14059.36,0.0001889,2]
[377943258,1754622636514,-1688.72,0.0001889,2]
[377943259,1754622636523,-732.3,0.0001889,2]
[377943260,1754622636532,-675.75,0.0001889,2]
[377943261,1754622636541,-1430.41,0.0001889,2]
[377943262,1754622636550,-400.0,0.0001889,2]
[377943263,1754622636561,-1101.46,0.0001889,2]
[377943264,1754622636571,-1099.16,0.0001889,2]
[377943265,1754622636583,-160.163131,0.0001889,2]
[377943266,1754622636594,-794.51,0.0001889,2]
[377943267,1754622636604,-411.37,0.0001889,2]
[377943268,1754622636613,-475.9,0.0001889,2]
[377943269,1754622636622,-400.0,0.0001889,2]
[377943270,1754622636631,-400.0,0.0001889,2]
[377943271,1754622636644,-400.0,0.0001889,2]
[377943272,1754622636654,-700.84,0.0001889,2]
[377943273,1754622636663,-746.85,0.0001889,2]
[377943274,1754622636673,-400.0,0.0001889,2]
[377943275,1754622636683,-2008.38,0.0001889,2]
[377943276,1754622636692,-400.0,0.0001889,2]
[377943277,1754622636702,-978.57,0.0001889,2]
[377943278,1754622636711,-400.0,0.0001889,2]
[377943279,1754622636721,-781.64,0.0001889,2]
[377943280,1754622636730,-766.82,0.0001889,2]
[377943281,1754622636739,-997.03,0.0001889,2]
[377943282,1754622636748,-400.0,0.0001889,2]
[377943283,1754622636757,-400.0,0.0001889,2]
[377943284,1754622636767,-562.83,0.0001889,2]
[377943285,1754622636777,-400.0,0.0001889,2]
[377943286,1754622636788,-527.2,0.0001889,2]
[377943287,1754622636798,-400.0,0.0001889,2]
[377943288,1754622636807,-519.21,0.0001889,2]
[377943289,1754622636816,-924.19,0.0001889,2]
[377943290,1754622636825,-728.6,0.0001889,2]
[377943291,1754622636834,-851.74,0.0001889,2]
[377943292,1754622636844,-400.0,0.0001889,2]
[377943293,1754622636855,-1123.57,0.0001889,2]
[377943294,1754622636864,-462.39,0.0001889,2]
[377943295,1754622636873,-1124.99,0.0001889,2]
[377943296,1754622636883,-956.53,0.0001889,2]
[377943297,1754622636892,-400.0,0.0001889,2]
[377943298,1754622636902,-716.31,0.0001889,2]
[377943299,1754622636911,-400.0,0.0001889,2]
[377943300,1754622636921,-754.48,0.0001889,2]
[377943301,1754622636931,-400.0,0.0001889,2]
[377943302,1754622636940,-693.66,0.0001889,2]
[377943303,1754622636950,-202.941188,0.0001889,2]
[377943304,1754622636960,-1001.06,0.0001889,2]
[377943305,1754622636970,-160.49,0.0001889,2]
[377943306,1754622636979,-400.0,0.0001889,2]
[377943307,1754622636989,-401.91,0.0001889,2]
[377943308,1754622636999,-400.0,0.0001889,2]
[377943309,1754622637012,-400.0,0.0001889,2]
[377943310,1754622637028,-689.13,0.0001889,2]
[377943311,1754622637038,-400.0,0.0001889,2]
[377943312,1754622637048,-400.0,0.0001889,2]
[377943313,1754622637058,-955.16,0.0001889,2]
[377943314,1754622637068,-767.89,0.0001889,2]
[377943315,1754622637077,-597.71,0.0001889,2]
[377943316,1754622637087,-400.0,0.0001889,2]
[377943317,1754622637096,-1590.9,0.0001889,2]
[377943318,1754622637106,-453.21,0.0001889,2]
[377943319,1754622637116,-915.86,0.0001889,2]
[377943320,1754622637125,-439.23,0.0001889,2]
[377943321,1754622637136,-400.0,0.0001889,2]
[377943322,1754622637146,-400.0,0.0001889,2]
[377943323,1754622637156,-782.73,0.0001889,2]
[377943324,1754622637165,-706.87,0.0001889,2]
[377943325,1754622637174,-424.18,0.0001889,2]
[377943326,1754622637183,-2041.82,0.0001889,2]
[377943327,1754622637193,-1258.69,0.0001889,2]
[377943328,1754622637203,-456.46,0.0001889,2]
[377943329,1754622637212,-616.92,0.0001889,2]
[377943330,1754622637222,-1336.46,0.0001889,2]
[377943331,1754622637231,-400.0,0.0001889,2]
[377943332,1754622637240,-716.1,0.0001889,2]
[377943334,1754622637250,-400.0,0.0001889,2]
[377943335,1754622637259,-755.89,0.0001889,2]
[377943336,1754622637268,-400.0,0.0001889,2]
[377943338,1754622637277,-400.0,0.0001889,2]
[377943339,1754622637287,-542.47,0.0001889,2]
[377943340,1754622637299,-400.0,0.0001889,2]
[377943341,1754622637309,-400.0,0.0001889,2]
[377943342,1754622637318,-559.94,0.0001889,2]
[377943343,1754622637328,-405.35,0.0001889,2]
[377943344,1754622637337,-400.0,0.0001889,2]
[377943345,1754622637347,-681.64,0.0001889,2]
[377943346,1754622637355,-1676.95,0.0001889,2]
[377943347,1754622637365,-1011.35,0.0001889,2]
[377943348,1754622637374,-1404.73,0.0001889,2]
[377943349,1754622637383,-786.38,0.0001889,2]
[377943350,1754622637393,-879.23,0.0001889,2]
[377943351,1754622637402,-400.0,0.0001889,2]
[377943352,1754622637411,-1306.47,0.0001889,2]
[377943353,1754622637420,-1435.43,0.0001889,2]
[377943354,1754622637429,-400.0,0.0001889,2]
[377943355,1754622637438,-400.0,0.0001889,2]
[377943356,1754622637448,-151.0,0.0001889,2]
[377943357,1754622637457,-160.9559,0.0001889,2]
[377943358,1754622637466,-400.0,0.0001889,2]
[377943359,1754622637475,-400.0,0.0001889,2]
[377943360,1754622637484,-405.69,0.0001889,2]
[377943361,1754622637493,-400.0,0.0001889,2]
[377943362,1754622637504,-400.0,0.0001889,2]
[377943363,1754622637523,-432.11,0.0001889,2]
[377943364,1754622637532,-400.0,0.0001889,2]
[377943365,1754622637541,-400.0,0.0001889,2]
[377943366,1754622637550,-676.24,0.0001889,2]
[377943367,1754622637559,-739.84,0.0001889,2]
[377943368,1754622637568,-230.57924286,0.00018891,2]
[377943369,1754622637577,-431.10870218,0.00018891,2]
[377943370,1754622637590,-400.0,0.00018891,2]
[377943371,1754622637604,-400.0,0.00018891,2]
[377943372,1754622637614,-400.0,0.00018891,2]
[377943373,1754622637623,-261.23,0.00018891,2]
[377943374,1754622637633,-400.0,0.00018891,2]
[377943375,1754622637642,-400.0,0.00018891,2]
[377943376,1754622637652,-400.0,0.00018891,2]
[377943377,1754622637662,-466.59036201,0.00018891,2]
[377943378,1754622637672,-400.0,0.00018891,2]
[377943379,1754622637683,-400.0,0.00018891,2]
[377943380,1754622637692,-400.0,0.00018891,2]
[377943381,1754622637702,-400.0,0.00018891,2]
[377943382,1754622637712,-531.39,0.00018891,2]
[377943383,1754622637721,-569.07,0.00018891,2]
[377943384,1754622637730,-400.0,0.00018891,2]
[377943385,1754622637741,-400.0,0.00018891,2]
[377943386,1754622637754,-660.1,0.00018891,2]
[377943387,1754622637763,-400.0,0.00018891,2]
[377943388,1754622637772,-400.0,0.00018891,2]
[377943389,1754622637787,-400.0,0.00018891,2]
[377943390,1754622637797,-400.0,0.00018891,2]
[377943391,1754622637807,-400.0,0.00018891,2]
[377943392,1754622637817,-370.00299459,0.00018891,2]
[377943393,1754622637995,-400.0,0.00018891,2]
[377943394,1754622638006,-631.19,0.00018891,2]
[377943395,1754622638016,-520.56,0.00018891,2]
[377943396,1754622638026,-151.0,0.00018891,2]
[377943397,1754622638036,-166.601463,0.00018891,2]
[377943398,1754622638045,-687.67,0.00018891,2]
[377943399,1754622638055,-400.0,0.00018891,2]
[377943400,1754622638064,-153.311709,0.00018891,2]
[377943401,1754622638075,-400.0,0.00018891,2]
[377943402,1754622638084,-552.19,0.00018891,2]
[377943403,1754622638094,-400.0,0.00018891,2]
[377943404,1754622638104,-856.88,0.00018891,2]
[377943405,1754622638114,-724.62,0.00018891,2]
[377943406,1754622638129,-155.800533,0.00018891,2]
[377943407,1754622638143,-400.0,0.00018891,2]
[377943408,1754622638152,-400.0,0.00018891,2]
[377943409,1754622638162,-400.0,0.00018891,2]
[377943410,1754622638171,-400.0,0.00018891,2]
[377943411,1754622638181,-400.0,0.00018891,2]
[377943412,1754622638190,-400.0,0.00018891,2]
[377943413,1754622638200,-400.0,0.00018891,2]
[377943414,1754622638209,-155.641468,0.00018891,2]
[377943415,1754622638219,-400.04,0.00018891,2]
[377943416,1754622638228,-400.0,0.00018891,2]
[377943417,1754622638238,-528.65,0.00018891,2]
[377943418,1754622638247,-825.11,0.00018891,2]
[377943419,1754622638256,-824.99,0.00018891,2]
[377943420,1754622638270,-400.0,0.00018891,2]
[377943421,1754622638282,-400.0,0.00018891,2]
[377943422,1754622638291,-400.0,0.00018891,2]
[377943423,1754622638300,-400.0,0.00018891,2]
[377943424,1754622638310,-674.23,0.00018891,2]
[377943425,1754622638319,-493.47,0.00018891,2]
[377943426,1754622638328,-400.0,0.00018891,2]
[377943427,1754622638338,-400.0,0.00018891,2]
[377943428,1754622638347,-579.71,0.00018891,2]
[377943429,1754622638357,-400.0,0.00018891,2]
[377943430,1754622638367,-400.0,0.00018891,2]
[377943431,1754622638376,-400.0,0.00018891,2]
[377943432,1754622638385,-696.2,0.00018891,2]
[377943433,1754622638394,-400.0,0.00018891,2]
[377943434,1754622638403,-400.40255559,0.00018891,2]
[377943435,1754622638412,-417.8,0.00018891,2]
[377943436,1754622638421,-186.717748,0.00018891,2]
[377943437,1754622638431,-400.0,0.00018891,2]
[377943438,1754622638439,-460.45,0.00018891,2]
[377943439,1754622638448,-400.0,0.00018891,2]
[377943440,1754622638457,-400.0,0.00018891,2]
[377943441,1754622638466,-508.08,0.00018891,2]
[377943442,1754622638476,-400.0,0.00018891,2]
[377943443,1754622638485,-840.98,0.00018891,2]
[377943444,1754622638494,-151.0,0.00018891,2]
[377943445,1754622638503,-162.550331,0.00018891,2]
[377943446,1754622638512,-400.0,0.00018891,2]
[377943447,1754622638523,-510.96,0.00018891,2]
[377943448,1754622638532,-400.0,0.00018891,2]
[377943449,1754622638541,-439.3,0.00018891,2]
[377943450,1754622638551,-400.0,0.00018891,2]
[377943451,1754622638560,-400.0,0.00018891,2]
[377943452,1754622638569,-613.0,0.00018891,2]
[377943453,1754622638579,-400.0,0.00018891,2]
[377943454,1754622638588,-400.0,0.00018891,2]
[377943455,1754622638597,-400.0,0.00018891,2]
[377943456,1754622638606,-503.11,0.00018891,2]
[377943457,1754622638615,-504.4,0.00018891,2]
[377943458,1754622638625,-799.0,0.00018891,2]
[377943459,1754622638635,-400.0,0.00018891,2]
[377943460,1754622638644,-696.55,0.00018891,2]
[377943461,1754622638653,-400.0,0.00018891,2]
[377943462,1754622638663,-782.52,0.00018891,2]
[377943463,1754622638672,-434.43,0.00018891,2]
[377943464,1754622638681,-400.0,0.00018891,2]
[377943465,1754622638690,-400.0,0.00018891,2]
[377943466,1754622638699,-400.0,0.00018891,2]
[377943467,1754622638709,-935.76,0.00018891,2]
[377943468,1754622638717,-678.24,0.00018891,2]
[377943469,1754622638726,-650.34,0.00018891,2]
[377943470,1754622638735,-1049.01,0.00018891,2]
[377943471,1754622638744,-400.0,0.00018891,2]
[377943472,1754622638753,-400.0,0.00018891,2]
[377943473,1754622638761,-996.51,0.00018891,2]
[377943474,1754622638770,-549.86,0.00018891,2]
[377943475,1754622638779,-663.66,0.00018891,2]
[377943476,1754622638788,-745.93,0.00018891,2]
[377943477,1754622638799,-437.2,0.00018891,2]
[377943478,1754622638809,-400.0,0.00018891,2]
[377943479,1754622638818,-430.12,0.00018891,2]
[377943480,1754622638827,-1400.57,0.00018891,2]
[377943481,1754622638836,-914.05,0.00018891,2]
[377943482,1754622638845,-400.0,0.00018891,2]
[377943483,1754622638854,-400.0,0.00018891,2]
[377943484,1754622638863,-400.0,0.00018891,2]
[377943485,1754622638873,-400.0,0.00018891,2]
[377943486,1754622638882,-400.0,0.00018891,2]
[377943487,1754622638891,-400.0,0.00018891,2]
[377943488,1754622638901,-400.0,0.00018891,2]
[377943489,1754622638910,-500.0,0.00018891,2]
[377943490,1754622638919,-500.0,0.00018891,2]
[377943491,1754622638929,-400.0,0.00018891,2]
[377943492,1754622638938,-400.0,0.00018891,2]
[377943493,1754622638954,-1145.81,0.00018891,2]
[377943494,1754622638973,-400.0,0.00018891,2]
[377943495,1754622638992,-1061.93,0.00018891,2]
[377943496,1754622639011,-400.0,0.00018891,2]
[377943497,1754622639027,-400.0,0.00018891,2]
[377943498,1754622639043,-433.19,0.00018891,2]
[377943499,1754622639062,-928.82,0.00018891,2]
[377943500,1754622639079,-400.0,0.00018891,2]
[377943501,1754622639100,-530.46,0.00018891,2]
[377943502,1754622639117,-400.0,0.00018891,2]
[377943503,1754622639136,-400.0,0.00018891,2]
[377943504,1754622639156,-400.0,0.00018891,2]
[377943506,1754622639170,-400.0,0.00018891,2]
[377943507,1754622639190,-445.24,0.00018891,2]
[377943508,1754622639403,-400.0,0.00018891,2]
[377943509,1754622639422,-150.0,0.00018891,2]
[377943510,1754622639435,-150.0,0.00018891,2]
[377943511,1754622639450,-670.48,0.00018891,2]
[377943512,1754622639465,-400.0,0.00018891,2]
[377943513,1754622639481,-177.15902662,0.00018891,2]
[377943514,1754622639500,-400.0,0.00018891,2]
[377943515,1754622639515,-679.71,0.00018891,2]
[377943516,1754622639532,-1746.77,0.00018891,2]
[377943517,1754622639547,-835.62,0.00018891,2]
[377943518,1754622639562,-1445.97,0.00018891,2]
[377943519,1754622639578,-400.0,0.00018891,2]
[377943520,1754622639593,-1043.73,0.00018891,2]
[377943521,1754622639610,-400.0,0.00018891,2]
[377943522,1754622639626,-151.0,0.00018891,2]
[377943523,1754622639643,-165.051069,0.00018891,2]
[377943524,1754622639659,-598.49,0.00018891,2]
[377943525,1754622639675,-429.74,0.00018891,2]
[377943526,1754622639691,-400.0,0.00018891,2]
[377943527,1754622639707,-400.0,0.00018891,2]
[377943528,1754622639722,-462.0,0.00018891,2]
[377943529,1754622639738,-897.24,0.00018891,2]
[377943530,1754622639754,-1334.41,0.00018891,2]
[377943531,1754622639769,-400.0,0.00018891,2]
[377943532,1754622639787,-1012.61,0.00018891,2]
[377943533,1754622639802,-493.65,0.00018891,2]
[377943534,1754622639817,-1229.72,0.00018891,2]
[377943535,1754622639834,-439.85,0.00018891,2]
[377943536,1754622639849,-944.39,0.00018891,2]
[377943537,1754622639865,-400.0,0.00018891,2]
[377943538,1754622639882,-855.83,0.00018891,2]
[377943541,1754622639900,-539.54,0.00018891,2]
[377943544,1754622639915,-400.0,0.00018891,2]
[377943546,1754622639932,-400.0,0.00018891,2]
[377943549,1754622639947,-1807.46,0.00018891,2]
[377943552,1754622639964,-825.22,0.00018891,2]
[377943554,1754622639979,-400.0,0.00018891,2]
[377943557,1754622639993,-400.0,0.00018891,2]
[377943559,1754622640010,-1294.41,0.00018891,2]
[377943562,1754622640025,-1564.27,0.00018891,2]
[377943565,1754622640040,-950.23,0.00018891,2]
[377943567,1754622640055,-469.23472096,0.00018891,2]
[377943570,1754622640070,-371.53800869,0.00018891,2]
[377943572,1754622640084,-400.0,0.00018891,2]
[377943575,1754622640100,-400.0,0.00018891,2]
[377943578,1754622640114,-967.16,0.00018891,2]
[377943580,1754622640129,-721.49,0.00018891,2]
[377943583,1754622640143,-400.0,0.00018891,2]
[377943585,1754622640158,-1204.76,0.00018891,2]
[377943588,1754622640174,-400.0,0.00018891,2]
[377943591,1754622640189,-400.0,0.00018891,2]
[377943593,1754622640204,-467.86899271,0.00018891,2]
[377943596,1754622640219,-747.8,0.00018891,2]
[377943598,1754622640233,-709.49,0.00018891,2]
[377943601,1754622640249,-1371.75,0.00018891,2]
[377943604,1754622640263,-1145.44,0.00018891,2]
[377943606,1754622640278,-714.85,0.00018891,2]
[377943609,1754622640292,-400.0,0.00018891,2]
[377943611,1754622640307,-400.0,0.00018891,2]
[377943614,1754622640323,-400.0,0.00018891,2]
[377943617,1754622640338,-400.0,0.00018891,2]
[377943619,1754622640353,-1120.07,0.00018891,2]
[377943622,1754622640367,-503.51,0.00018891,2]
[377943625,1754622640382,-1052.36,0.00018891,2]
[377943627,1754622640397,-400.0,0.00018891,2]
[377943630,1754622640412,-400.0,0.00018891,2]
[377943632,1754622640427,-499.73,0.00018891,2]
[377943635,1754622640441,-1064.37,0.00018891,2]
[377943637,1754622640457,-861.28,0.00018891,2]
[377943640,1754622640471,-400.0,0.00018891,2]
[377943642,1754622640486,-277.95220447,0.00018891,2]
[377943645,1754622640500,-471.34,0.00018891,2]
[377943647,1754622640515,-857.66,0.00018891,2]
[377943650,1754622640529,-566.04,0.00018891,2]
[377943653,1754622640544,-650.05,0.00018891,2]
[377943655,1754622640558,-907.14,0.00018891,2]
[377943658,1754622640572,-467.04373548,0.00018891,2]
[377943660,1754622640587,-897.28,0.00018891,2]
[377943663,1754622640602,-758.32,0.00018891,2]
[377943666,1754622640617,-400.0,0.00018891,2]
[377943668,1754622640633,-3781.77,0.00018891,2]
[377943671,1754622640650,-1362.92,0.00018891,2]
[377943673,1754622640659,-400.0,0.00018891,2]
[377943675,1754622640668,-400.0,0.00018891,2]
[377943677,1754622640677,-400.0,0.00018891,2]
[377943679,1754622640686,-469.79393011,0.00018891,2]
[377943841,1754622642403,-1126.677387,0.00018803,2]
[377943880,1754622642768,-974.00647906,0.00018803,2]
[377943917,1754622643571,-6680.60012,0.00018803,2]
[377943918,1754622643708,-554.77500044,0.00018803,2]
[377943919,1754622644147,-2852.90373672,0.00018803,2]
[377943920,1754622644157,-12188.96272322,0.00018815,2]
[377943921,1754622644166,-1257.86,0.0001889,2]
[377943922,1754622644174,-411.16606989,0.00018891,2]
[377943923,1754622644183,-400.0,0.00018891,2]
[377943924,1754622644193,-400.0,0.00018891,2]
[377943925,1754622644203,-893.45,0.00018891,2]
[377943926,1754622644213,-215.84954495,0.00018891,2]
[377943927,1754622644257,-184.15045505,0.00018891,2]
[377943928,1754622644266,-593.55,0.00018891,2]
[377943929,1754622644276,-81.39800229,0.00018891,2]
[377943930,1754622644356,-78.58536149,0.00018891,2]
[377943931,1754622645502,-482.95,0.0001889,2]
[377943932,1754622645511,-400.0,0.0001889,2]
[377943933,1754622645521,-470.89663622,0.00018891,2]
[377943934,1754622645530,-1310.15336378,0.00018891,2]
[377944004,1754622700534,598.0,0.00017907,2]
[377944006,1754622723143,224.64,0.00013699,2]
[377944007,1754622727304,151.0,0.00017949,2]
[377944008,1754622727514,156.587,0.00017949,2]
[377944009,1754622727743,172.06379166,0.00017949,2]
[377944010,1754622779801,666.0,0.00017907,3]
[377944011,1754622785575,1000.0,0.00017832,2]
[377944013,1754622795538,511.0,0.00017812,2]
[377944014,1754622817571,150.0,0.00017865,2]
[377944016,1754622848530,175.0,0.00017832,7]
[377944017,1754622851560,178.89,0.00017865,2]
[377944019,1754622901961,21308.38,0.00017857,2]
[377944022,1754622993575,205.02,0.00017854,2]
[377944023,1754623026043,-155.39289287,0.00018026,2]
[377944024,1754623028773,-318.53140427,0.00018026,2]
[377944025,1754623030635,-183.6724023,0.00018026,2]
[377944026,1754623033295,-504.07884097,0.00018026,2]
[377944027,1754623035520,-227.65271213,0.00018026,2]
[377944028,1754623037962,-250.18853976,0.00018026,2]
[377944029,1754623040878,-309.32788646,0.00018026,2]
[377944030,1754623044074,-160.81374268,0.00018026,2]
[377944031,1754623046639,-135.81157856,0.00018026,2]
[377944032,1754623087303,515.4,0.00015068,2]
[377944033,1754623087501,515.4,0.00016659,2]
[377944034,1754623090992,1729.1,0.00017984,2]
[377944035,1754623097915,3119.37,0.00017853,2]
[377944036,1754623118952,150.0,0.00017883,2]
[377944037,1754623134719,12471.55126247,0.00018,2]
[377944038,1754623138883,677.21,0.00017847,2]
[377944040,1754623169105,450.26,0.00017883,2]
[377944041,1754623204990,185.19,0.00014306,2]
[377944042,1754623231689,11912.76,0.00017883,2]
[377944043,1754623233417,994.0,0.00030137,120]
[377944044,1754623279508,167.57,0.00017883,2]
[377944046,1754623394174,250.0,0.00017883,2]
[377944047,1754623466906,5000.0,0.00018,2]
[377944048,1754623489111,511.0,0.00017921,2]
[377944054,1754623576635,200.0,0.00017821,2]
[377944055,1754623607704,200.0,0.00017883,2]
[377944056,1754623661333,213.4,0.00013699,2]
[377944057,1754623664299,478.4,0.00017822,2]
[377944059,1754623705729,666.0,0.00017883,3]
[377944060,1754623711170,161.96,0.00017883,2]
[377944062,1754623747966,444.43,0.00017883,2]
[377944064,1754623770492,1000.0,0.00017883,2]
[377944066,1754623809999,-228.85133108,0.00018155,4]
[377944067,1754623811846,-161.96,0.00018062,2]
[377944112,1754623831888,-771.14866892,0.00018155,4]
[377944113,1754623831897,-1000.0,0.00018212,4]
[377944114,1754623831908,-515.4,0.00018249,2]
[377944115,1754623831918,-1000.0,0.0001825,4]
[377944116,1754623831928,-300.0,0.0001825,2]
[377944117,1754623831937,-150.0,0.0001825,2]
[377944118,1754623831947,-250.0,0.00018251,2]
[377944119,1754623831956,-70.2468453,0.00018252,2]
[377944120,1754623832000,-79.7531547,0.00018252,2]
[377944122,1754623832010,-166.66,0.00018375,2]
[377944124,1754623832020,-178.89,0.00018535,2]
[377944126,1754623832029,-859.67252248,0.00018568,2]
[377944127,1754623832040,-163.91635,0.000187,2]
[377944128,1754623832050,-1200.0,0.00018712,2]
[377944129,1754623832060,-478.4,0.00018713,2]
[377944130,1754623832069,-300.0,0.00018738,2]
[377944131,1754623832079,-4004.0811,0.00018739,2]
[377944132,1754623832089,-600.0,0.00018762,2]
[377944133,1754623832098,-4496.15507419,0.00018768,2]
[377944134,1754623832108,-267.46074303,0.00018768,2]
[377944135,1754623832118,-4655.49134797,0.00018788,2]
[377944136,1754623832127,-8532.27390629,0.00018789,2]
[377944137,1754623832137,-156.61673826,0.00018789,2]
[377944138,1754623832146,-308.1568646,0.0001879,2]
[377944139,1754623832156,-615.82217302,0.0001879,2]
[377944140,1754623832165,-160.0,0.0001879,2]
[377944141,1754623832177,-151.0,0.0001879,2]
[377944142,1754623832188,-500.0,0.0001879,2]
[377944143,1754623832197,-151.0,0.0001879,2]
[377944144,1754623832207,-500.0,0.0001879,2]
[377944145,1754623832216,-500.0,0.0001879,2]
[377944146,1754623832226,-500.0,0.0001879,2]
[377944147,1754623832235,-158.87608964,0.0001879,2]
[377944148,1754623832244,-247.41333416,0.0001879,2]
[377944149,1754623832253,-4655.49134797,0.000188,2]
[377944150,1754623832262,-8532.27390625,0.00018801,2]
[377944151,1754623832272,-163.91636,0.0001881,2]
[377944152,1754623832281,-4655.49134797,0.00018813,2]
[377944153,1754623832290,-8532.27390625,0.00018814,2]
[377944154,1754623832300,-3003.7340123,0.00018815,2]
[377944155,1754623832311,-4662.51281194,0.00018823,2]
[377944156,1754623832321,-4655.49134797,0.00018825,2]
[377944157,1754623832330,-8532.27390625,0.00018826,2]
[377944158,1754623832340,-398.956,0.00018835,2]
[377944159,1754623832351,-4655.49134797,0.00018838,2]
[377944160,1754623832361,-8532.27390625,0.00018838,2]
[377944161,1754623832370,-500.0,0.00018845,2]
[377944162,1754623832381,-4655.49134797,0.0001885,2]
[377944164,1754623832390,-8532.27390625,0.00018851,2]
[377944166,1754623832399,-7603.92017602,0.00018851,2]
[377944168,1754623832411,-1196.10500325,0.00018851,2]
[377944173,1754623837515,-6888.1852784,0.00018851,2]
[377944174,1754623837525,-4655.49134797,0.00018863,2]
[377944175,1754623837535,-8532.27390625,0.00018863,2]
[377944176,1754623837545,-500.0,0.00018873,2]
[377944177,1754623837555,-234.84700777,0.00018873,2]
[377944178,1754623837564,-500.0,0.00018873,2]
[377944179,1754623837574,-500.0,0.00018873,2]
[377944180,1754623837584,-500.0,0.00018873,2]
[377944181,1754623837594,-500.0,0.00018873,2]
[377944182,1754623837604,-500.0,0.00018873,2]
[377944183,1754623837613,-391.32135746,0.00018873,2]
[377944184,1754623837680,-108.67864254,0.00018873,2]
[377944185,1754623837689,-500.0,0.00018873,2]
[377944186,1754623837699,-500.0,0.00018873,2]
[377944187,1754623837707,-500.0,0.00018873,2]
[377944188,1754623837717,-500.0,0.00018873,2]
[377944189,1754623837726,-500.0,0.00018873,2]
[377944190,1754623837735,-500.0,0.00018873,2]
[377944191,1754623837744,-500.0,0.00018873,2]
[377944192,1754623837754,-500.0,0.00018873,2]
[377944193,1754623837763,-500.0,0.00018873,2]
[377944194,1754623837772,-500.0,0.00018873,2]
[377944195,1754623837781,-500.0,0.00018873,2]
[377944196,1754623837790,-500.0,0.00018873,2]
[377944197,1754623837799,-500.0,0.00018873,2]
[377944198,1754623837809,-500.0,0.00018873,2]
[377944199,1754623837818,-699.72135746,0.00018875,2]
[377944200,1754623837833,-1137.1274406,0.00018875,2]
[377944381,1754623839771,-729.594016,0.00018875,2]
[377944385,1754623839801,-1327.52546718,0.00018875,2]
[377944388,1754623839812,-761.52306673,0.00018875,2]
[377944390,1754623839822,-891.22299057,0.00018875,2]
[377944392,1754623839837,-539.945,0.00018875,2]
[377944395,1754623839848,-271.11479865,0.00018875,2]
[377944397,1754623839860,-583.6,0.00018875,2]
[377944410,1754623839975,-6246.39111703,0.00018875,2]
[377944412,1754623839984,-357.94,0.00018878,2]
[377944414,1754623839994,-657.86390446,0.00018878,2]
[377944416,1754623840003,-4655.49134797,0.00018888,2]